[Event "4NCL Div 2 2024-25"]
[Site "England"]
[Date "2025.01.25"]
[Round "3.16"]
[White "Kemp, Peter D"]
[Black "Wong, Chun Hei"]
[Result "0-1"]
[Annotator "TA"]
[ECO "E03"]
[WhiteElo "2096"]
[BlackElo "1925"]
[PlyCount "38"]
[EventDate "2024.11.23"]
[EventType "team-tourn"]
[EventCountry "ENG"]
[SourceTitle "playchess.com"]
[Source "ChessBase"]
[SourceQuality "1"]
[TimeControl "40/6000+30:3000+30"]

{[%evp 19,38,0,6,6,12,-11,0,-98,-90,-127,33,-102,-102,-287,-304,-602,-588,-1161,-1189,-29989,-29990]} 1. d4 {[%emt 0:10:04]} Nf6 {[%emt 0:10:15]} 2. c4 {[%emt 0:00:08]} e6 {[%emt 0:00:08]} 3. Nf3 {[%emt 0:00:05]} d5 {[%emt 0:00:16]} 4. g3 {[%emt 0:00:40]} Be7 {[%emt 0:00:10]} 5. Bg2 {[%emt 0:00:18]} O-O {[%emt 0:00:19]} 6. O-O {[%emt 0:00:33]} dxc4 {[%emt 0:00:12]} 7. Qc2 {[%emt 0:00:55]} b6 {[%emt 0:00:20]} 8. Qxc4 {[%emt 0:00:11]} Bb7 {[%emt 0:00:54]} 9. Nc3 {[%emt 0:05:39]} Nbd7 {[%emt 0:03:43]} 10. Rd1 {[%emt 0:12:15]} c5 {[%emt 0:01:39]} 11. dxc5 {[%emt 0:07:47] E03: Open Catalan: 5 Qa4+ Nbd7 6 Qxc4.} Bxc5 {[%emt 0:00:44]} 12. b4 {[%emt 0:00:35]} Bxf2+ {[%emt 0:01:06]} (12... Be7 {simplifies} 13. a3 a5 14. Bd2 axb4 15. axb4 Qc8) 13. Kf1 {[%emt 0:08:35] White sacrificed a pawn} (13. Kxf2 $11 {keeps the balance.} Rc8 14. Qd4 Rxc3 15. Bf4) 13... Rc8 $17 {[%emt 0:14:02]} 14. Qb3 {[%emt 0:04:16] [#]} Ng4 $146 {[%emt 0:10:42]} (14... b5 $1 $17 {Threatens to win with ...Qb6.} 15. Nxb5 (15. Kxf2 $2 Rxc3 16. Qb2 Qb6+ 17. Nd4 Rfc8 $19) 15... Bb6) (14... b5 15. Bg5 Qb6 16. Rd3 e5 17. Rad1 e4 18. Rd6 Rc6 19. Rxd7 exf3 20. Bxf3 Bg1 {0-1 Mkrtchyan,M (2381)-Sturua,Z (2521) Yerevan Margaryan Memorial GM 2023 (3)}) 15. h3 {[%emt 0:05:12] [#]} (15. Bg5 $1 $14 Qe8 16. Nb5) 15... Ne3+ $1 {[%emt 0:04:53]} (15... Qf6 16. hxg4 Bxf3 (16... Qxc3 $2 17. Qxc3 Rxc3 18. Kxf2 $18) (16... Rxc3 $2 17. g5 $18) 17. Bxf3 $16) 16. Kxf2 $2 {[%emt 0:00:38] This costs White the game.} (16. Bxe3 $17 {is the only way for White.} Bxe3 17. Nb5) 16... Rxc3 $1 $19 {[%emt 0:01:17]} ({Weaker is} 16... Nxd1+ 17. Nxd1 Nf6 18. Bb2 $15) 17. Rxd7 $2 {[%emt 0:03:56]} (17. Bxe3 Rxb3 18. axb3) 17... Qxd7 {[%emt 0:01:09]} 18. Qb1 {[%emt 0:01:27]} Nxg2 {[%emt 0:06:38]} 19. Kxg2 {[%emt 0:00:43]} Qd1 {[%emt 0:01:52][%csl LRe2,LRf3] Weighted Error Value: White=1.95/Black=0.36  Loses game:     	White=1     	---        Mistake:       	White=3     	Black=1      Inaccurate:     	White=2     	---        OK:         	White=1     	Black=1      Strong:       	---       	Black=2} 0-1

[Event "4NCL Div 2 2024-25"]
[Site "England"]
[Date "2025.01.25"]
[Round "3.17"]
[White "Walton, Alan J"]
[Black "Cooksey, Paul S"]
[Result "1/2-1/2"]
[Annotator "TA"]
[ECO "D17"]
[WhiteElo "2025"]
[BlackElo "2234"]
[PlyCount "68"]
[EventDate "2024.11.23"]
[EventType "team-tourn"]
[EventCountry "ENG"]
[SourceTitle "playchess.com"]
[Source "ChessBase"]
[SourceQuality "1"]
[TimeControl "40/6000+30:3000+30"]

{[%evp 17,68,6,17,16,3,8,30,26,39,-26,-14,-18,-29,-33,-10,-53,-29,-23,0,-48,-30,-26,-23,-25,-17,-17,-16,-51,-33,-37,-37,-40,-36,-37,-31,-36,-34,-37,-17,-59,-33,-52,-25,-34,-18,-33,0,-11,0,-11,0,6,9]} 1. d4 {[%emt 0:10:05]} d5 {[%emt 0:10:07][%cal Bd7d5,Bd5c4][%mdl 32]} 2. c4 {[%emt 0:00:11]} c6 {[%emt 0:00:07]} 3. Nc3 {[%emt 0:00:42]} Nf6 {[%emt 0:00:15]} 4. Nf3 {[%emt 0:00:45]} dxc4 {[%emt 0:00:41]} 5. a4 {[%emt 0:00:08]} Bf5 {[%emt 0:00:12]} 6. Nh4 {[%emt 0:00:59]} e6 {[%emt 0:02:46]} 7. Nxf5 {[%emt 0:00:48]} exf5 {[%emt 0:00:10]} 8. e3 {[%emt 0:00:07]} Bd6 {[%emt 0:01:10]} 9. Bxc4 {[%emt 0:00:18]} O-O {[%emt 0:01:01]} 10. h3 {[%emt 0:00:34] D17: Slav Defence: 5 a4 Bf5: Lines with 6 Nh4 and 6 Ne5.} Qd7 {[%emt 0:05:11]} 11. Qd3 $146 {[%emt 0:03:55]} (11. g4 fxg4 12. hxg4 Qxg4 13. Qxg4 Nxg4 14. e4 Na6 15. Bxa6 bxa6 16. f3 Nh6 17. Bxh6 gxh6 18. Rxh6 {1-0 Khenkin,I (2530)-Kirov,N (2455) Zaragoza op-A 1995 (3)}) 11... Re8 {[%emt 0:09:54]} 12. O-O {[%emt 0:01:14] White has an edge.} a5 {[%emt 0:04:00]} 13. Bd2 {[%emt 0:04:19]} (13. Rd1 $14) 13... Na6 $11 {[%emt 0:03:48]} 14. Bxa6 {[%emt 0:08:23]} Rxa6 {[%emt 0:00:54]} 15. Rfe1 {[%emt 0:04:10]} Qe6 {[%emt 0:06:43]} 16. f3 {[%emt 0:13:02]} Raa8 {[%emt 0:06:56]} 17. e4 {[%emt 0:02:39]} Bc7 {[%emt 0:09:45]} 18. Bg5 {[%emt 0:16:02]} (18. exf5 $11 {feels stronger.} Qd6 19. Rxe8+ Nxe8 20. Ne2) 18... fxe4 {[%emt 0:13:26]} 19. Nxe4 {[%emt 0:02:42]} Nxe4 {[%emt 0:01:35]} 20. Rxe4 {[%emt 0:01:15]} Qd7 {[%emt 0:04:37]} 21. Rae1 {[%emt 0:04:12]} Rxe4 {[%emt 0:01:10]} 22. Qxe4 {[%emt 0:01:40]} h6 {[%emt 0:01:35]} 23. Bh4 {[%emt 0:00:20][%cal Bg5h4,Bh4f2,Bf2e3][%mdl 32]} Bb6 {[%emt 0:02:10]} 24. Bf2 {[%emt 0:00:28]} Rd8 {[%emt 0:01:13][%cal Rb6d4]} 25. Rd1 {[%emt 0:01:21]} Re8 {[%emt 0:01:21]} 26. Qd3 {[%emt 0:00:28]} Qd5 {[%emt 0:00:45]} 27. Kf1 {[%emt 0:00:31]} Rd8 {[%emt 0:01:42]} 28. Be3 {[%emt 0:03:01]} Ba7 {[%emt 0:02:57]} 29. Qc3 {[%emt 0:00:27]} Re8 {[%emt 0:02:08]} 30. Re1 {[%emt 0:00:43]} Bb6 {[%emt 0:00:54]} 31. Bf2 {[%emt 0:00:53]} Rd8 {[%emt 0:01:42][%cal Rb6d4]} 32. Re4 {[%emt 0:03:21] The position is equal.} Qd7 {[%emt 0:04:23]} 33. d5 {[%emt 0:00:12]} Bxf2 {[%emt 0:02:45]} 34. dxc6 {[%emt 0:00:09]} bxc6 {[%emt 0:02:16] Weighted Error Value: White=0.16 (very precise) /Black=0.13 (very precise)   Mistake:       	White=2     	---        Inaccurate:     	White=3     	Black=2      OK:         	White=8     	Black=5      Best:        	White=1     	---} 1/2-1/2

[Event "4NCL Div 2 2024-25"]
[Site "England"]
[Date "2025.01.25"]
[Round "3.18"]
[White "Kacprzak, Kacper"]
[Black "Dunn, Andrew M"]
[Result "1-0"]
[Annotator "TA"]
[ECO "B12"]
[WhiteElo "2291"]
[BlackElo "2117"]
[PlyCount "73"]
[EventDate "2024.11.23"]
[EventType "team-tourn"]
[EventCountry "ENG"]
[SourceTitle "playchess.com"]
[Source "ChessBase"]
[SourceQuality "1"]
[TimeControl "40/6000+30:3000+30"]

{[%evp 9,73,0,36,31,27,22,48,31,27,0,30,16,79,69,156,163,149,134,243,227,355,369,355,369,352,343,355,335,355,389,389,388,372,350,399,389,387,410,1033,741,1005,876,1107,461,458,441,709,781,764,742,725,798,801,800,440,775,759,753,833,745,1593,719,29992,29993,29993,29994]} 1. e4 {[%emt 0:10:06]} c6 {[%emt 0:10:08]} 2. d4 {[%emt 0:00:06]} d5 {[%emt 0:00:06]} 3. f3 {[%emt 0:00:07]} dxe4 {[%emt 0:01:44]} 4. fxe4 {[%emt 0:00:08]} e5 {[%emt 0:00:09]} 5. Nf3 {[%emt 0:00:04]} Bg4 {[%emt 0:01:07]} 6. c3 {[%emt 0:00:17] B12: Caro-Kann: Advance Variation.} Nd7 {[%emt 0:04:13]} 7. Bd3 {[%emt 0:00:28]} Bd6 {[%emt 0:02:33]} 8. O-O {[%emt 0:00:22] White is slightly better.} Ngf6 {[%emt 0:00:39]} 9. Na3 {[%emt 0:01:01][%cal Bb1a3,Ba3c2,Bc2e3][%mdl 32]} b5 {[%emt 0:11:59] Prevents Nc4.} 10. Nc2 {[%emt 0:00:34]} Qc7 {[%emt 0:07:59]} (10... O-O $11) 11. Ne3 $146 {[%emt 0:10:27] Black is now going downhill.} (11. Qe1 O-O 12. Qh4 Rad8 13. Ne3 Bh5 14. Nf5 Bg6 15. Nxd6 Qxd6 16. Bg5 Rfe8 17. Rae1 {½-½ Abasov,N (2665)-Asadli,V (2572) AZE-ch Prelim 75th 2021 (2)}) 11... exd4 {[%emt 0:24:57]} (11... Be6 $14) 12. cxd4 {[%emt 0:00:14]} Bxh2+ {[%emt 0:00:51]} 13. Kh1 {[%emt 0:00:31]} Bf4 {[%emt 0:05:38]} (13... h5 $16 14. a4 Bf4) 14. e5 $18 {[%emt 0:11:57]} Bxe5 {[%emt 0:16:51]} (14... Bxe3 $142 15. exf6 (15. Bxe3 Nd5 $16) 15... Bh6 16. Qe1+ Be6) 15. Nxg4 {[%emt 0:06:25]} (15. dxe5 Bxf3 16. Qxf3 Nxe5 $18) 15... Nxg4 {[%emt 0:00:54]} 16. Nxe5 {[%emt 0:00:40]} Ndxe5 {[%emt 0:02:21]} 17. dxe5 {[%emt 0:00:48]} Nxe5 {[%emt 0:01:06]} 18. Bf4 {[%emt 0:01:47]} O-O-O {[%emt 0:01:18]} 19. Bf5+ {[%emt 0:00:36]} Kb7 {[%emt 0:00:27]} 20. Qe2 {[%emt 0:01:15]} Rhe8 {[%emt 0:03:13]} 21. a4 {[%emt 0:06:13]} (21. Bxh7 Qe7 $18) 21... b4 {[%emt 0:03:39]} 22. Be4 {[%emt 0:10:51] A strong pair of Bishops.} (22. Bxh7 g6 23. Rad1 Rc8 $18 (23... f6 $2 24. Bxg6 Rh8+ 25. Kg1 $18)) 22... a6 {[%emt 0:04:43][%cal Ba7a6,Ba6a5][%mdl 32] Wards off Qb5+} 23. Rac1 {[%emt 0:06:04][%cal Of4e5] and Bxe5! should not be overlooked} (23. Bxh7 Rh8 $18) 23... Re6 {[%emt 0:03:09]} (23... Rd6 $142 24. Rfd1 (24. Bxh7 g5 $11) 24... Rxd1+ 25. Qxd1 Re6) 24. Rc4 {[%emt 0:06:15]} (24. Bxh7 Rh8 25. Qe4 g5 26. Bxg5 (26. Bxe5 Rxe5 27. Qxb4+ Ka8 $15) 26... f6 27. Qxb4+ (27. Bxf6 $2 Rxh7+ 28. Bh4 Qe7 $19) 27... Ka7 $17) 24... a5 {[%emt 0:02:00]} 25. Bxe5 {[%emt 0:03:44][%cal Oc4c6]} (25. Bxh7 $2 Rh8 26. Rd4 Rxh7+ 27. Kg1 f6 $19) 25... Qxe5 {[%emt 0:00:44] [#]} 26. Bxc6+ $1 {[%emt 0:00:36][%mdl 512]} Kb6 {[%emt 0:00:20]} 27. Qf2+ {[%emt 0:01:11]} Qe3 {[%emt 0:00:17]} (27... Ka6 $142 28. Bb5+ (28. Qxf7 Rh6+ 29. Kg1 Qh2+ 30. Kf2 Rf6+ $19) 28... Kb7 29. Qxf7+ Kb6) 28. Qxe3+ {[%emt 0:01:50]} Rxe3 {[%emt 0:00:02]} 29. Rxf7 {[%emt 0:00:08]} Rd6 {[%emt 0:00:46]} 30. Rb7+ {[%emt 0:01:59]} Ka6 {[%emt 0:00:02]} 31. Rxg7 {[%emt 0:00:10]} Re1+ {[%emt 0:00:54]} 32. Kh2 {[%emt 0:00:06]} Rh6+ {[%emt 0:00:09]} 33. Kg3 {[%emt 0:00:09]} Re3+ {[%emt 0:00:41][%cal Be1e3,Be3b3,Bb3b2][%mdl 32]} 34. Bf3 {[%emt 0:00:27]} Rb3 {[%emt 0:00:30]} 35. Rc8 {[%emt 0:00:45]} Rxb2 {[%emt 0:00:45]} 36. Rb7 {[%emt 0:01:37][%cal Rc8a8]} Rg6+ {[%emt 0:00:17]} 37. Kh4 {[%emt 0:00:04] Weighted Error Value: White=0.54/Black=1.06  Mistake:       	---       	Black=6      Inaccurate:     	White=1     	Black=3      OK:         	White=11    	Black=4      Best:        	White=4     	Black=2} 1-0

[Event "4NCL Div 2 2024-25"]
[Site "England"]
[Date "2025.01.25"]
[Round "3.19"]
[White "Gayson, Peter M"]
[Black "Starosta, Martyna"]
[Result "0-1"]
[Annotator "TA"]
[ECO "C03"]
[WhiteElo "2087"]
[BlackElo "2309"]
[PlyCount "88"]
[EventDate "2024.11.23"]
[EventType "team-tourn"]
[EventCountry "ENG"]
[SourceTitle "playchess.com"]
[Source "ChessBase"]
[SourceQuality "1"]
[TimeControl "40/6000+30:3000+30"]

{[%evp 9,88,4,8,10,31,13,12,-1,0,0,0,0,0,0,-7,-3,-23,-22,0,-24,-25,-79,-76,-69,-72,-95,-103,-109,-120,-130,-135,-134,-133,-129,-106,-116,-134,-151,-65,-61,-44,-88,-97,-154,-166,-139,-138,-157,-141,-166,-153,-207,-157,-283,-270,-336,-344,-888,-907,-853,-622,-912,-903,-872,-791,-782,-777,-733,-677,-944,-940,-828,-797,-691,-547,-1118,-965,-945,-925,-29993,-29994]} 1. e4 {[%emt 0:23:10]} e6 {[%emt 0:10:05]} 2. d4 {[%emt 0:00:11]} d5 {[%emt 0:00:05]} 3. Nd2 {[%emt 0:00:11]} Be7 {[%emt 0:00:06]} 4. exd5 {[%emt 0:00:51]} exd5 {[%emt 0:00:05]} 5. Ngf3 {[%emt 0:00:27]} Nf6 {[%emt 0:00:13]} 6. Bd3 {[%emt 0:00:52]} Bg4 {[%emt 0:00:06]} 7. h3 {[%emt 0:00:52]} Bh5 {[%emt 0:00:13]} 8. O-O {[%emt 0:00:43] The position is equal.} O-O {[%emt 0:00:48]} 9. Re1 {[%emt 0:00:29]} c5 {[%emt 0:00:52]} 10. dxc5 {[%emt 0:01:37]} Bxc5 {[%emt 0:00:40]} 11. Nb3 {[%emt 0:00:49]} Bb6 {[%emt 0:02:52]} 12. Bg5 {[%emt 0:06:36]} h6 {[%emt 0:14:12]} 13. Bh4 {[%emt 0:06:47]} Qd6 {[%emt 0:02:00]} 14. Kf1 {[%emt 0:10:52]} Nc6 {[%emt 0:04:47]} 15. Bg3 {[%emt 0:01:30]} (15. Nbd2 $11) 15... Qd7 $17 {[%emt 0:03:09]} 16. a4 {[%emt 0:07:03]} a6 {[%emt 0:06:47]} (16... a5 $5) 17. a5 {[%emt 0:05:04]} Ba7 {[%emt 0:00:17]} 18. c3 {[%emt 0:03:07]} Rfe8 {[%emt 0:04:24]} 19. Nbd2 {[%emt 0:17:41]} Rxe1+ $1 {[%emt 0:03:05]} 20. Qxe1 {[%emt 0:00:41]} Re8 {[%emt 0:00:42]} 21. Qb1 {[%emt 0:00:23]} Qe7 {[%emt 0:15:21] aiming for ...Ne4. Black is more active.} 22. Qc2 {[%emt 0:01:57]} Ne4 {[%emt 0:04:03] ...Nxg3+ would now be deadly.} 23. Re1 {[%emt 0:05:54][%cal Rd2e4] [#]} Bxf3 {[%emt 0:06:21]} ({Inferior is} 23... Nxa5 24. Nxe4 dxe4 25. Rxe4 $18) (23... f5 $1 $17 {[%cal Oe7f7]} 24. Bf4 Nxa5 (24... Bxf2 25. Nxe4 Bxe1 26. Nd6 $15)) 24. Nxf3 $15 {[%emt 0:00:49]} Nxa5 {[%emt 0:01:30]} 25. Bxe4 {[%emt 0:11:31]} dxe4 {[%emt 0:00:17] Black continues to play with concentration.} 26. Nd2 {[%emt 0:00:29] [#]} (26. Ne5 $142) 26... f5 $1 $17 {[%emt 0:02:17]} 27. Bf4 {[%emt 0:00:41]} Nc6 {[%emt 0:03:32][%cal Ba5c6,Bc6e5,Be5d3][%mdl 32]} 28. Be3 {[%emt 0:00:17]} Bb8 {[%emt 0:01:30]} 29. Qb3+ {[%emt 0:00:33]} Kh8 {[%emt 0:01:04]} 30. Bb6 {[%emt 0:01:01]} (30. Re2 $17 {was worth a try.}) 30... Ne5 {[%emt 0:05:46] ...Nd3 is the strong threat.} 31. Bd4 {[%emt 0:00:59]} (31. Qd5 $17 {was necessary.}) 31... Nd3 $19 {[%emt 0:00:48]} 32. Ra1 {[%emt 0:00:50]} Be5 {[%emt 0:01:53]} 33. Ra4 {[%emt 0:01:05]} (33. Ba7) 33... Bxd4 {[%emt 0:00:35]} 34. Rxd4 {[%emt 0:00:07]} e3 {[%emt 0:07:25][%cal Oe3f2] ( -> ...exf2!)} 35. Rxd3 {[%emt 0:01:00]} exf2 {[%emt 0:00:08]} 36. Kxf2 {[%emt 0:00:45]} Qe2+ {[%emt 0:01:16]} 37. Kg1 {[%emt 0:00:09]} Qxd3 {[%emt 0:00:17][%mdl 4096] Endgame. KQR-KQN} 38. Nf3 {[%emt 0:00:07] Prevents Re1+} Qe3+ {[%emt 0:00:44]} 39. Kh1 {[%emt 0:00:21]} Qc1+ {[%emt 0:00:12]} 40. Kh2 {[%emt 0:00:15]} Qf4+ {[%emt 0:00:06]} 41. Kh1 {[%emt 0:50:17]} b5 {[%emt 0:58:48] Strongly threatening ...Re2.} 42. Qf7 {[%emt 0:01:19]} Re4 {[%emt 0:00:46] Threatens to win with ...Re2.} 43. b4 {[%emt 0:00:00]} Re2 {[%emt 0:00:00] And now ...Rc2 would win.} 44. h4 {[%emt 0:00:00]} Qg4 {[%emt 0:00:00] Weighted Error Value: White=0.48/Black=0.22 (precise) .  Mistake:       	White=5     	Black=1      Inaccurate:     	White=1     	---        OK:         	White=8     	Black=12     Best:        	White=2     	Black=2} 0-1

[Event "4NCL Div 2 2024-25"]
[Site "England"]
[Date "2025.01.25"]
[Round "3.20"]
[White "Webb, Richard M"]
[Black "Edwards-Wright, Miles D"]
[Result "1-0"]
[Annotator "TA"]
[ECO "B06"]
[WhiteElo "2172"]
[BlackElo "1970"]
[PlyCount "77"]
[EventDate "2024.11.23"]
[EventType "team-tourn"]
[EventCountry "ENG"]
[SourceTitle "playchess.com"]
[Source "ChessBase"]
[SourceQuality "1"]
[TimeControl "40/6000+30:3000+30"]

{[%evp 10,77,54,54,47,14,23,14,29,23,58,58,53,45,40,24,37,0,52,8,21,-39,0,-145,-145,-151,-147,-129,-133,-135,-123,-122,-109,-104,-77,-147,-156,-124,-119,-204,-146,-264,-201,-208,-229,-234,-218,-189,0,0,85,58,50,55,46,44,113,2,168,160,222,205,226,125,215,214,454,458,601,599]} 1. e4 {[%emt 0:10:07]} g6 {[%emt 0:10:05]} 2. d4 {[%emt 0:00:17]} Bg7 {[%emt 0:00:06]} 3. Nc3 {[%emt 0:00:17]} d6 {[%emt 0:00:06]} 4. Be3 {[%emt 0:00:37]} a6 {[%emt 0:00:14]} 5. Qd2 {[%emt 0:02:58]} b5 {[%emt 0:00:28]} 6. a3 {[%emt 0:01:31]} Nd7 {[%emt 0:00:09] B06: Modern Defence.} 7. h4 {[%emt 0:00:18]} h5 {[%emt 0:00:15]} 8. Nh3 {[%emt 0:00:57]} Nb6 {[%emt 0:06:48] The position is equal.} 9. Ng5 {[%emt 0:00:44]} Nh6 {[%emt 0:01:07]} 10. f3 {[%emt 0:01:26]} c6 $146 {[%emt 0:00:24]} (10... Bb7 11. Bd3 d5 12. exd5 Nxd5 13. Nxd5 Bxd5 14. Be4 Bxe4 15. Nxe4 Nf5 16. c3 Qd5 {½-½ Moreno Mora,M (1694)-Lopez L,D (1740) Olympiad Women-45 2024 (8.2)}) 11. b3 {[%emt 0:05:28]} Qc7 {[%emt 0:10:09]} 12. Rd1 {[%emt 0:03:39]} Bd7 {[%emt 0:13:23]} 13. Be2 {[%emt 0:03:13]} Rd8 {[%emt 0:04:54]} ({Black should try} 13... a5 $11) 14. Kf2 {[%emt 0:03:59]} d5 {[%emt 0:07:42]} 15. Bf4 {[%emt 0:10:20]} ({Better is} 15. e5 $1 $11) 15... Qc8 $1 $15 {[%emt 0:01:01]} 16. exd5 {[%emt 0:02:10]} (16. e5 $1 $11) 16... cxd5 $17 {[%emt 0:01:09]} 17. Na2 {[%emt 0:01:07]} Nf5 {[%emt 0:06:41]} 18. c3 {[%emt 0:00:17]} f6 {[%emt 0:02:31]} 19. Nh3 {[%emt 0:01:14]} Nxh4 {[%emt 0:05:26]} 20. Nb4 {[%emt 0:01:07]} a5 {[%emt 0:02:35]} 21. Nd3 {[%emt 0:00:10]} a4 {[%emt 0:00:08]} 22. Nc5 {[%emt 0:02:40]} (22. bxa4 $142 Nxa4 23. Nb4) 22... axb3 {[%emt 0:00:55]} 23. Nxd7 {[%emt 0:03:42]} Qxd7 {[%emt 0:00:13]} (23... Kxd7 24. Bxb5+ Ke6 25. Qe2+ Kf7 26. Rde1 $11) 24. Rb1 {[%emt 0:05:42]} (24. Qb2 $17) 24... Nc4 {[%emt 0:00:33]} 25. Qd3 {[%emt 0:00:18]} (25. Qd1 $17) 25... O-O {[%emt 0:10:38]} (25... Nxa3 26. Rxb3 Nc4 27. Qb1 $17) 26. g3 {[%emt 0:02:29]} Nf5 {[%emt 0:00:58]} 27. g4 {[%emt 0:01:02] [#]} hxg4 {[%emt 0:05:12]} 28. fxg4 {[%emt 0:00:09]} e5 $2 {[%emt 0:01:09]} (28... Nh4 $19 {And now ...e5 would win.} 29. Bg3 g5 30. Bxh4 gxh4) 29. gxf5 $11 {[%emt 0:01:19][%cal Ob1b3]} e4 {[%emt 0:01:21]} (29... b2 $11 {keeps the balance.}) 30. Qg3 {[%emt 0:02:13]} Qxf5 {[%emt 0:00:08]} 31. Qg4 $36 {[%emt 0:10:12][%mdl 2048] White has some pressure.} e3+ {[%emt 0:02:09]} 32. Kg3 {[%emt 0:00:34] Hoping for Qxf5. Some like it hot} Qxg4+ {[%emt 0:03:42] Reckless King} 33. Kxg4 {[%emt 0:03:02]} (33. Bxg4 $16 b2 34. Be6+ Rf7 35. Rhe1 (35. Bxf7+ Kxf7 36. Bxe3 Re8 $11) (35. Kf3 g5 $11)) 33... Rfe8 {[%emt 0:01:03]} (33... g5 $1 $11 {and Black stays safe.}) 34. Rxb3 $18 {[%emt 0:01:40][%cal Bb1b3,Bb3b5,Bb5d5,Bd5f5][%mdl 32]} g5 {[%emt 0:00:16]} (34... Nd2 $16 {is a better defense.} 35. Rxb5 Rc8 36. Rxd5 Rxc3) 35. Rxb5 {[%emt 0:03:40]} gxf4 {[%emt 0:00:50] [#]} 36. Nxf4 {[%emt 0:01:15]} (36. Rxd5 $1 $18 Nxa3 (36... Rxd5 $2 {too greedy.} 37. Bxc4 f5+ 38. Kg5 $18) 37. Nxf4 (37. Rxd8 Rxd8 38. Nxf4 Rc8 $18)) 36... Nxa3 {[%emt 0:01:23]} (36... f5+ $16 37. Kh3 (37. Kxf5 Nd6+ 38. Kg4 Ne4 $11) 37... Nd2) 37. Rxd5 {[%emt 0:00:20]} f5+ $2 {[%emt 0:00:33]} (37... Rxd5 38. Nxd5 Ra8 39. Nxe3 Rd8) 38. Rxf5 {[%emt 0:01:34]} ({Less strong is} 38. Kxf5 Rf8+ 39. Kg5 Rxd5+ 40. Nxd5 Rf2 $18) 38... Rc8 {[%emt 0:01:21]} 39. Bf3 {[%emt 0:05:06] White used his chance.   Weighted Error Value: White=0.36/Black=0.44  Loses game:     	---       	Black=1      Missed win:     	---       	Black=1      Mistake:       	White=7     	Black=5      Inaccurate:     	White=4     	Black=2      OK:         	White=11    	Black=8      Best:        	White=4     	Black=2      Strong:       	---       	Black=1} 1-0